[Event "13th Chennai Open 2022"]
[Site "Chennai"]
[Date "2022.06.23"]
[Round "7.15"]
[White "John Veny Akkarakaran"]
[Black "Ravichandran, Siddharth"]
[Result "0-1"]
[ECO "B70"]
[WhiteElo "1855"]
[BlackElo "2352"]
[Annotator "TA"]
[PlyCount "90"]
[EventDate "2022.06.19"]
[EventType "swiss"]
[EventCountry "IND"]
[SourceTitle "playchess.com"]
[Source "ChessBase"]
[SourceQuality "1"]
[TimeControl "5400+30"]

{[%evp 15,90,56,49,8,25,12,36,19,31,-21,-2,-27,-6,-41,-25,-47,-30,-86,-87,-95,-91,-81,-67,-50,-50,-62,-51,-248,-263,-263,-259,-257,-264,-262,-260,-260,-257,-418,-418,-418,-416,-549,-544,-704,-698,-29952,-29957,-29953,-29954,-29945,-12798,-6921,-6329,-6364,-6381,-29970,-29971,-29973,-29973,-29979,-29980,-29980,-29981,-29982,-29983,-29983,-29983,-29982,-29982,-29982,-29983,-29983,-29984,-29984,-29985,-29985,-29986]} 1. e4 {[%emt 0:00:05]} c5 {[%emt 0:06:05]} 2. Nf3 {[%emt 0:00:03]} d6 {[%emt 0:00:44]} 3. d4 {[%emt 0:00:06]} cxd4 {[%emt 0:00:08]} 4. Nxd4 {[%emt 0:00:06]} Nf6 {[%emt 0:00:06]} 5. Nc3 {[%emt 0:00:07]} a6 {[%emt 0:00:07]} 6. Be2 {[%emt 0:00:07]} g6 {[%emt 0:01:10]} 7. Be3 {[%emt 0:07:41]} Bg7 {[%emt 0:08:26]} 8. Qd2 {[%emt 0:00:19]} Nbd7 {[%emt 0:05:43]} 9. h4 {[%emt 0:09:41] B70: Sicilian Dragon: 6 g3 and 6 Be2 (without a later Be3).} h5 {[%emt 0:00:40]} (9... b5 {is more complex.} 10. h5 b4 11. Nd5 Nxe4 12. Qxb4 Rb8) 10. f3 {[%emt 0:07:34]} Ne5 {[%emt 0:18:19]} 11. Bg5 {[%emt 0:09:58] White is slightly better.} Bd7 {[%emt 0:06:11] [#]} 12. Nd5 $146 {[%emt 0:22:12]} (12. O-O-O $14) ({Predecessor:} 12. O-O-O b5 13. Nb3 Be6 14. Kb1 Rc8 15. Nd5 Bxd5 16. exd5 Nc4 17. Bxc4 bxc4 18. Bxf6 Bxf6 {0-1 (27) Johansen,J (2029)-Thjomoe,H (1735) Bornholm 2008}) 12... Nxd5 $11 {[%emt 0:04:49]} 13. exd5 {[%emt 0:00:02]} Rc8 {[%emt 0:01:19]} 14. Be3 {[%emt 0:06:39]} Qc7 {[%emt 0:05:35]} 15. c3 {[%emt 0:01:22]} b5 {[%emt 0:11:13]} 16. Rc1 {[%emt 0:08:15]} (16. O-O $11) 16... Nc4 $17 {[%emt 0:05:10]} 17. Bxc4 {[%emt 0:00:10]} Qxc4 {[%emt 0:00:07]} 18. Nb3 {[%emt 0:02:29][%cal Bd4b3,Bb3a5,Ba5c4][%mdl 32]} a5 {[%emt 0:01:07]} 19. Nxa5 {[%emt 0:05:55]} Qxa2 {[%emt 0:00:20]} 20. b4 {[%emt 0:01:05]} Qa3 {[%emt 0:04:47][%cal Rg7c3]} 21. c4 {[%emt 0:02:29] [#] This move loses the game for White.} (21. O-O $15) 21... bxc4 $1 $19 {[%emt 0:00:16]} 22. Nxc4 {[%emt 0:01:26]} Qb3 {[%emt 0:08:25]} 23. Bd4 {[%emt 0:03:01]} Bxd4 {[%emt 0:00:26]} 24. Qxd4 {[%emt 0:00:14][%cal Rd4h8]} Qxb4+ {[%emt 0:00:24]} 25. Kf2 {[%emt 0:00:57][%cal Rd4h8]} O-O {[%emt 0:00:08]} 26. Qc3 $2 {[%emt 0:05:54]} (26. Ke3) 26... Qxc3 {[%emt 0:03:15]} 27. Rxc3 {[%emt 0:00:01]} Rc5 {[%emt 0:00:09] aiming for ...Rfc8.} 28. Rhc1 {[%emt 0:00:36] [#]} Rfc8 $1 {[%emt 0:00:09]} 29. Ke3 {[%emt 0:00:05]} Bb5 {[%emt 0:03:25]} 30. Kd4 {[%emt 0:00:02]} Rxc4+ {[%emt 0:00:16]} 31. Rxc4 {[%emt 0:00:01]} Rxc4+ {[%emt 0:00:07]} 32. Rxc4 {[%emt 0:00:01]} Bxc4 {[%emt 0:00:06]} 33. Kxc4 {[%emt 0:00:02][%mdl 4096] Endgame KP-KP} Kg7 {[%emt 0:00:13] And now ...Kf6 would win.} 34. Kd4 {[%emt 0:00:04]} Kf6 {[%emt 0:01:37] Hoping for ...g5.} 35. Ke4 {[%emt 0:00:31]} g5 {[%emt 0:00:28] Black mates.} 36. hxg5+ {[%emt 0:00:51]} Kxg5 {[%emt 0:00:06]} 37. g3 {[%emt 0:00:00]} f5+ {[%emt 0:01:44]} 38. Ke3 {[%emt 0:00:08]} f4+ {[%emt 0:00:18]} 39. gxf4+ {[%emt 0:00:22] K3P-K3P} Kf5 {[%emt 0:00:06]} 40. Kf2 {[%emt 0:00:16]} Kxf4 {[%emt 0:00:05]} 41. Kg2 {[%emt 0:00:12]} h4 {[%emt 0:00:27]} 42. Kh3 {[%emt 0:00:04]} Kxf3 {[%emt 0:00:05]} 43. Kxh4 {[%emt 0:00:02]} Ke4 {[%emt 0:00:06]} 44. Kg4 {[%emt 0:00:06]} Kxd5 {[%emt 0:00:04]} 45. Kf5 {[%emt 0:00:03]} e5 {[%emt 0:00:08] Weighted Error Value: White=0.63/Black=0.02 (flawless)} 0-1

[Event "13th Chennai Open 2022"]
[Site "Chennai"]
[Date "2022.06.23"]
[Round "7.16"]
[White "Karthikeyan, P.."]
[Black "Gandhi, Aakash"]
[Result "1-0"]
[ECO "C02"]
[WhiteElo "2361"]
[BlackElo "1698"]
[Annotator "TA"]
[PlyCount "175"]
[EventDate "2022.06.19"]
[EventType "swiss"]
[EventCountry "IND"]
[SourceTitle "playchess.com"]
[Source "ChessBase"]
[SourceQuality "1"]
[TimeControl "5400+30"]

{[%evp 11,175,0,0,-24,-14,-50,6,-22,32,32,41,5,7,-26,44,50,45,34,35,11,21,26,17,15,20,18,16,8,8,15,44,41,62,58,77,76,108,60,134,137,138,134,354,100,104,94,107,83,102,32,232,232,232,232,232,232,232,232,231,214,253,246,253,253,253,253,253,253,253,253,349,304,308,253,260,260,253,200,200,200,213,45,370,183,183,183,183,145,145,145,145,0,145,145,183,145,145,145,145,145,145,145,145,145,145,145,145,145,145,145,145,145,145,145,145,0,145,145,145,145,145,145,145,145,145,145,145,145,145,145,145,145,145,145,145,145,145,145,145,145,145,145,145,145,145,145,145,0,145,145,145,145,410,410,410,410,410,410,410,410,12445,8459,12796,7254,7140,6543]} 1. e4 {[%emt 0:02:42]} e6 {[%emt 0:00:32]} 2. d4 {[%emt 0:00:30]} d5 {[%emt 0:00:22]} 3. e5 {[%emt 0:00:05]} c5 {[%emt 0:00:24]} 4. c3 {[%emt 0:00:04]} Nc6 {[%emt 0:00:20]} 5. Nf3 {[%emt 0:00:04]} Qb6 {[%emt 0:00:53]} 6. Bd3 {[%emt 0:00:18]} cxd4 {[%emt 0:00:42]} 7. O-O $1 {[%emt 0:00:15][%mdl 4] is recently more successful than 7.cxd4. C02: French: Advance Variation.} Bd7 {[%emt 0:00:44]} 8. Re1 {[%emt 0:00:33]} Nh6 {[%emt 0:02:00]} (8... Rc8 $15) 9. a3 {[%emt 0:08:17] The position is equal.} a6 {[%emt 0:06:37]} (9... Rc8 $11) 10. b4 $14 {[%emt 0:02:22] [#]} Be7 $146 {[%emt 0:01:52]} ({Predecessor:} 10... Rc8 11. Bd2 Be7 12. Ra2 O-O 13. cxd4 Nf5 14. Bc3 Na7 15. a4 Rxc3 16. Nxc3 Bxb4 17. Bxf5 Bxc3 18. Bxh7+ Kxh7 {1-0 (30) Hector,J (2539)-Ask,J (2159) Malmo 2012}) 11. h3 {[%emt 0:08:15]} Rc8 {[%emt 0:01:19]} 12. cxd4 {[%emt 0:07:07]} Nf5 {[%emt 0:04:18]} (12... Nxd4 $11 13. Be3 Nxf3+ 14. Qxf3 Qd8) 13. Bxf5 {[%emt 0:06:35]} exf5 {[%emt 0:00:33]} 14. Nc3 {[%emt 0:04:26]} Be6 {[%emt 0:05:01][%cal Oc6e5]} 15. Ne2 {[%emt 0:05:05]} O-O {[%emt 0:03:22]} 16. Bg5 {[%emt 0:02:40]} Bxg5 {[%emt 0:02:41]} 17. Nxg5 {[%emt 0:00:03]} h6 {[%emt 0:00:17]} 18. Nf3 {[%emt 0:00:26]} a5 {[%emt 0:00:07]} 19. Rb1 {[%emt 0:01:14]} axb4 {[%emt 0:00:11]} 20. axb4 {[%emt 0:00:57]} Na7 {[%emt 0:00:10]} 21. b5 {[%emt 0:01:57]} Rc7 {[%emt 0:07:22]} 22. Qd3 {[%emt 0:12:14]} Rfc8 {[%emt 0:01:48]} 23. Nh4 {[%emt 0:00:06]} g6 {[%emt 0:02:52]} 24. Nf3 {[%emt 0:01:40]} ({Better is} 24. g3 $16) 24... Bd7 {[%emt 0:01:36]} (24... Rc2 $14) 25. Nf4 $16 {[%emt 0:03:10]} Be6 {[%emt 0:00:11]} 26. Qa3 {[%emt 0:03:07][%cal Of4g6] Strongly threatening Nxg6!} Rd7 $2 {[%emt 0:04:18]} (26... Rd8 $16 27. Rec1 Rxc1+ 28. Rxc1 (28. Qxc1 Kg7 $16) 28... Nc8) 27. Nd3 $2 {[%emt 0:00:48]} (27. Ra1 $18) 27... Rc4 {[%emt 0:01:12]} 28. Nc5 $36 {[%emt 0:01:46][%mdl 2048] White has strong initiative.} Rc7 {[%emt 0:00:14]} 29. Qe3 {[%emt 0:09:47]} Kg7 {[%emt 0:02:44]} 30. Nd2 {[%emt 0:01:10] 0x0.00176315182ddp-1022s more active pieces.} (30. Rb2 $16) 30... R4xc5 $2 {[%emt 0:04:32]} (30... Rc2 $14) 31. dxc5 $18 {[%emt 0:01:00]} Rxc5 {[%emt 0:00:07]} 32. Nb3 $1 {[%emt 0:03:46]} Rxb5 {[%emt 0:00:38]} 33. Qxb6 {[%emt 0:00:10]} Rxb6 {[%emt 0:00:12]} 34. Nd4 {[%emt 0:02:19]} Rxb1 {[%emt 0:01:57]} 35. Rxb1 {[%emt 0:00:02][%mdl 4096] Endgame KRN-KBN} Bc8 {[%emt 0:00:15]} 36. Rc1 {[%emt 0:00:17]} Nc6 {[%emt 0:00:42]} 37. Nxc6 {[%emt 0:04:01]} bxc6 {[%emt 0:00:10]} 38. Rxc6 {[%emt 0:00:03] KR-KB} Be6 {[%emt 0:00:17]} 39. f4 {[%emt 0:01:11]} Kf8 {[%emt 0:02:39]} 40. Kf2 {[%emt 0:00:55]} Ke7 {[%emt 0:01:02]} 41. Rc7+ {[%emt 0:00:51]} Kf8 {[%emt 0:00:17]} 42. Ra7 {[%emt 0:02:11]} Kg7 {[%emt 0:00:14]} 43. Ra8 {[%emt 0:00:54]} g5 {[%emt 0:00:43]} 44. fxg5 {[%emt 0:02:07]} hxg5 {[%emt 0:00:19]} 45. g3 {[%emt 0:00:10][%cal Bg2g3,Bg3f4][%mdl 32]} Kh6 {[%emt 0:02:38]} 46. h4 $2 {[%emt 0:00:47]} (46. Rg8 $18) 46... d4 $2 {[%emt 0:04:00][%mdl 8192]} ({Black should try} 46... f4 $1 $14) 47. Rd8 {[%emt 0:00:16]} (47. Rg8 $142) 47... f4 {[%emt 0:00:08] [#]} 48. gxf4 {[%emt 0:04:03]} ({Inferior is} 48. Rxd4 fxg3+ 49. Kxg3 Kg6 $11) 48... gxh4 {[%emt 0:00:27]} 49. Kf3 {[%emt 0:00:10]} Kg6 {[%emt 0:00:09]} 50. Rg8+ {[%emt 0:00:31]} Kh7 {[%emt 0:00:07]} 51. Rd8 {[%emt 0:01:16]} Kg6 {[%emt 0:00:18]} 52. Rxd4 {[%emt 0:00:57]} Kf5 {[%emt 0:00:17]} 53. Rd2 {[%emt 0:00:29]} f6 {[%emt 0:00:12]} 54. exf6 {[%emt 0:00:20]} Kxf6 {[%emt 0:00:09]} 55. Re2 {[%emt 0:00:32]} h3 {[%emt 0:00:20]} 56. Kg3 {[%emt 0:00:17]} Bf5 {[%emt 0:00:05]} 57. Re5 {[%emt 0:00:40]} Kg6 {[%emt 0:00:24]} 58. Ra5 {[%emt 0:00:27]} Kf6 {[%emt 0:00:27]} 59. Ra8 {[%emt 0:00:12]} Kf7 {[%emt 0:00:53]} 60. Rh8 {[%emt 0:00:16]} Kg7 {[%emt 0:00:15]} 61. Rh5 {[%emt 0:00:39]} Kg6 {[%emt 0:00:37]} 62. Rg5+ {[%emt 0:00:37]} Kf6 {[%emt 0:00:11]} 63. Rh5 {[%emt 0:00:33]} Kg6 $1 {[%emt 0:00:11] [#]} 64. Rh4 $1 {[%emt 0:00:13]} Kg7 {[%emt 0:00:25]} 65. Kf3 {[%emt 0:00:12]} Kf6 {[%emt 0:00:18]} 66. Ke3 {[%emt 0:00:04]} Bd7 {[%emt 0:00:12]} 67. Rh6+ {[%emt 0:00:48]} Kg7 {[%emt 0:00:11]} 68. Rd6 {[%emt 0:00:23]} Bg4 {[%emt 0:00:19] ...h2 is the strong threat.} 69. Kf2 {[%emt 0:01:29]} ({Don't take} 69. Rd2 Bf5 70. Kf2 Kf6 71. Rd6+ Be6) 69... Kf7 {[%emt 0:00:18]} 70. Kg3 {[%emt 0:00:31]} Bf5 {[%emt 0:00:43]} 71. Rb6 {[%emt 0:00:05]} Be6 {[%emt 0:00:26]} 72. Rb8 {[%emt 0:01:01]} Kf6 {[%emt 0:00:19]} 73. Rb2 {[%emt 0:00:11]} Kg6 {[%emt 0:00:19]} 74. Kf3 {[%emt 0:01:06]} Bd5+ {[%emt 0:00:14]} 75. Kg4 {[%emt 0:00:04]} Be6+ {[%emt 0:00:14]} 76. Kg3 {[%emt 0:00:15]} Kf6 {[%emt 0:00:10]} 77. Rb8 {[%emt 0:01:07]} Kf7 {[%emt 0:00:35]} 78. Rh8 {[%emt 0:00:36] Rh6 would kill now.} Kg7 {[%emt 0:00:12] Prevents Rh6.} 79. Rh4 {[%emt 0:00:21]} (79. Ra8 $16) 79... Kg6 {[%emt 0:00:21]} (79... Bf5 $1 $11 {remains equal.} 80. Rh5 Kg6) 80. Kf3 $16 {[%emt 0:00:06]} Bd5+ {[%emt 0:00:19]} 81. Ke3 {[%emt 0:00:08]} Bg2 $2 {[%emt 0:00:25][%mdl 8192]} (81... Be6 $16 {is a better defense.} 82. Kf3 Kg7) 82. Kf2 $18 {[%emt 0:00:20]} Kf5 {[%emt 0:00:12]} 83. Kg3 {[%emt 0:00:01]} Bf1 {[%emt 0:00:42]} 84. Rh5+ {[%emt 0:00:05]} Kg6 {[%emt 0:00:10]} 85. Rh8 {[%emt 0:00:26][%cal Of4f5] Threatening mate with f5+!} Kg7 {[%emt 0:00:30]} (85... Kf5 $142 86. Rf8+ Kg6 87. f5+ Kg7) 86. Rh4 {[%emt 0:00:08] White threatens Kg4 and mate. White is clearly winning.} Kg6 {[%emt 0:00:07]} 87. Kg4 {[%emt 0:00:03] Intending f5+ and mate.} Kf6 {[%emt 0:00:26]} 88. Rh6+ {[%emt 0:00:09] Weighted Error Value: White=0.28 (precise) /Black=0.33} 1-0

[Event "13th Chennai Open 2022"]
[Site "Chennai"]
[Date "2022.06.23"]
[Round "7.17"]
[White "Aaryan Varshney"]
[Black "Ashvath Mittal"]
[Result "1-0"]
[ECO "D66"]
[WhiteElo "2308"]
[BlackElo "1419"]
[Annotator "TA"]
[PlyCount "87"]
[EventDate "2022.06.19"]
[EventType "swiss"]
[EventCountry "IND"]
[SourceTitle "playchess.com"]
[Source "ChessBase"]
[SourceQuality "1"]
[TimeControl "5400+30"]

{[%evp 29,87,9,11,9,7,20,14,14,97,97,120,120,120,120,112,113,123,123,123,120,171,82,182,92,149,149,149,139,131,124,269,77,86,87,87,67,67,66,97,100,91,68,67,67,68,58,53,64,53,59,53,65,476,440,619,618,912,888,1099,1053]} 1. d4 {[%emt 0:00:03]} Nf6 {[%emt 0:00:02]} 2. c4 {[%emt 0:00:40]} e6 {[%emt 0:00:26]} 3. Nf3 {[%emt 0:00:05]} d5 {[%emt 0:00:03]} 4. Bg5 {[%emt 0:01:00]} Be7 {[%emt 0:01:02]} 5. Nc3 {[%emt 0:00:17]} O-O {[%emt 0:00:20]} 6. e3 {[%emt 0:00:12]} c6 {[%emt 0:01:28]} 7. Bd3 {[%emt 0:00:15]} dxc4 {[%emt 0:00:34]} 8. Bxc4 {[%emt 0:00:10]} b5 {[%emt 0:00:41]} 9. Bd3 {[%emt 0:00:09]} Nbd7 {[%emt 0:01:10]} 10. O-O {[%emt 0:00:14]} a6 {[%emt 0:01:03]} 11. a4 {[%emt 0:00:16]} Bb7 {[%emt 0:05:09]} 12. Rc1 {[%emt 0:00:17]} h6 {[%emt 0:00:28]} 13. Bh4 {[%emt 0:00:24]} b4 {[%emt 1:24:34]} 14. Bxf6 {[%emt 0:00:18]} Nxf6 {[%emt 0:00:00]} 15. Ne4 {[%emt 0:00:07]} Nd7 $1 {[%emt 0:00:00]} 16. Qe2 {[%emt 0:01:34] D66: Queen's Gambit Declined: Classical: Main Line (7 Rc1 c6 8 Bd3).} Qa5 {[%emt 0:00:00]} 17. Nfd2 {[%emt 0:01:48]} c5 {[%emt 0:00:00]} 18. dxc5 {[%emt 0:03:02][%cal Bd4c5,Bc5c6][%mdl 32] [#] aiming for c6. The position is equal.} Bxe4 $146 {[%emt 0:00:00]} (18... Bd5 $1 $11) ({Predecessor:} 18... Bd5 19. Nc4 Qxa4 20. Ra1 Qc6 21. Na5 Qc7 22. Rfc1 f5 23. Nd2 Nxc5 24. Nab3 Qb6 25. Nxc5 Bxc5 26. Bxa6 {½-½ (41) Beliavsky,A (2618)-Sveshnikov,E (2541) Bled 1999}) 19. Bxe4 $16 {[%emt 0:01:00] Black must now prevent Nb3.} Rac8 {[%emt 0:00:00]} 20. c6 {[%emt 0:08:11]} Nc5 {[%emt 0:00:00]} 21. Nc4 $36 {[%emt 0:01:12][%mdl 2048] Keeping Black busy.} Qc7 {[%emt 0:00:00]} 22. Bf3 {[%emt 0:00:49]} Nxa4 {[%emt 0:00:00]} 23. Ra1 {[%emt 0:01:13]} Nc5 {[%emt 0:00:00]} 24. Na5 {[%emt 0:00:32]} e5 {[%emt 0:00:00]} (24... Qb6 $16 {was necessary.} 25. Nb7 Ra8) 25. Qc4 {[%emt 0:19:56]} (25. Bd5 $1 $18 {has better winning chances.}) 25... Rb8 {[%emt 0:00:00]} (25... e4 $16 {keeps fighting.} 26. Bxe4 Nxe4 27. Qxe4 Bf6) 26. Nb3 {[%emt 0:15:28]} (26. Rfd1 $18) 26... Nxb3 {[%emt 0:00:00]} ({Better is} 26... e4 27. Bxe4 (27. Nxc5 Qxc6 28. Rxa6 Qxc5 $16) 27... Nxe4) 27. Qxb3 {[%emt 0:00:18]} a5 {[%emt 0:00:00]} 28. Rfd1 {[%emt 0:00:37] Strongly threatening Rd7.} Rfd8 {[%emt 0:00:00] Inhibits Rd7.} 29. Bd5 {[%emt 0:00:47]} Bc5 {[%emt 0:00:00] [#]} (29... Kf8 $16 {is a better defense.} 30. Qc4 (30. Bxf7 Rxd1+ 31. Rxd1 Qxc6 $16) 30... Rbc8) 30. Qc4 $2 {[%emt 0:06:37]} (30. Bxf7+ $1 $18 {[%mdl 512] is the precise move to win.} Kh8 31. Qe6) 30... Bb6 {[%emt 0:00:00]} 31. Rd3 {[%emt 0:00:27]} Qe7 {[%emt 0:00:00]} 32. g3 {[%emt 0:02:49]} Kf8 {[%emt 0:00:00]} 33. b3 {[%emt 0:05:36]} Rbc8 {[%emt 0:00:00]} 34. Rad1 {[%emt 0:00:47][%cal Ba1d1,Bd1d3,Bd3d5][%mdl 32]} Bc7 {[%emt 0:00:00]} 35. Qg4 {[%emt 0:08:18]} g6 {[%emt 0:00:05]} 36. Kg2 {[%emt 0:08:10] White is much more active.} h5 {[%emt 0:01:02]} 37. Qc4 {[%emt 0:00:33]} f5 {[%emt 0:01:56]} 38. Be6 {[%emt 0:02:02]} Rxd3 {[%emt 0:00:15]} 39. Rxd3 {[%emt 0:00:01]} Rd8 {[%emt 0:00:28] ...Rxd3 is the strong threat.} 40. Bd7 {[%emt 0:00:40]} e4 $2 {[%emt 0:01:41][%mdl 8192]} (40... Kg7 $14) 41. Rd5 $18 {[%emt 0:00:41] White is clearly winning.} h4 {[%emt 0:01:30]} (41... a4 $142 42. bxa4 Kg7) 42. Qd4 {[%emt 0:00:36][%cal Od7e6] Hoping for Be6!} Qg7 {[%emt 0:01:08]} 43. Qa7 {[%emt 0:01:17]} h3+ {[%emt 0:00:59]} 44. Kxh3 {[%emt 0:00:16] Weighted Error Value: White=0.16 (very precise) /Black=0.50} 1-0

[Event "13th Chennai Open 2022"]
[Site "Chennai"]
[Date "2022.06.23"]
[Round "7.18"]
[White "Priyankara, Chamil"]
[Black "Hirthickkesh PR"]
[Result "1-0"]
[ECO "A45"]
[WhiteElo "1938"]
[BlackElo "2232"]
[Annotator "TA"]
[PlyCount "118"]
[EventDate "2022.06.19"]
[EventType "swiss"]
[EventCountry "IND"]
[SourceTitle "playchess.com"]
[Source "ChessBase"]
[SourceQuality "1"]
[TimeControl "5400+30"]

{[%evp 9,118,-2,-6,-1,4,-12,0,-45,12,8,4,16,9,0,14,1,49,7,26,0,11,5,5,5,15,12,37,8,24,24,22,0,0,0,0,0,7,0,0,0,0,0,0,0,0,0,5,0,0,0,-6,-162,-133,-111,-104,-245,-222,-281,-281,-343,-181,-178,0,-416,-416,-453,-446,-452,-424,-419,-434,-410,-416,-402,-387,-493,-81,-66,-71,-127,-127,-280,-280,-485,-482,-487,-467,-460,-420,-841,-837,-795,-786,-660,-736,-565,-244,-1565,-1201,-29978,-29980,-29982,-29983,-29981,-29982,-29987,-29988,-29988,-29989,-29989,-29986]} 1. d4 {[%emt 0:00:28]} Nf6 {[%emt 0:00:10]} 2. Bf4 {[%emt 0:00:24]} g6 {[%emt 0:00:18]} 3. Nc3 {[%emt 0:00:24]} d5 {[%emt 0:00:17]} 4. e3 {[%emt 0:00:08]} c6 {[%emt 0:00:07]} 5. h4 {[%emt 0:00:37]} Bg7 {[%emt 0:04:05]} 6. Be2 {[%emt 0:00:58][%cal Bf1e2,Be2d1,Bd1a4][%mdl 32] A45: Trompowsky Attack.} h6 {[%emt 0:06:27]} 7. g4 {[%emt 0:15:06] [#]} Qa5 $146 {[%emt 0:05:49]} ({Predecessor:} 7... Nbd7 8. a4 a5 9. Nh3 Qb6 10. Ra3 Ne4 11. Rb3 Qd8 12. Nxe4 dxe4 13. Bg3 e5 {1-0 (36) Bortnyk,O (2598)-Vastrukhin,O (2401) Chess.com INT 2020}) 8. Rb1 {[%emt 0:08:29] The position is equal.} Ne4 {[%emt 0:12:09]} (8... c5 $15) 9. b4 $11 {[%emt 0:00:08]} Nxc3 {[%emt 0:00:38]} 10. bxa5 {[%emt 0:00:02]} Nxd1 {[%emt 0:00:05]} 11. Bxd1 {[%emt 0:05:04]} Nd7 {[%emt 0:03:25]} 12. Nf3 {[%emt 0:00:33] Inhibits e5.} f6 {[%emt 0:04:26]} (12... b6 $11) 13. h5 {[%emt 0:08:43]} g5 {[%emt 0:00:04]} 14. Bh2 {[%emt 0:03:05][%cal Oc2c4]} e5 {[%emt 0:01:27]} 15. c3 {[%emt 0:00:01]} b6 {[%emt 0:07:14]} 16. Ba4 {[%emt 0:02:52]} b5 {[%emt 0:04:20]} 17. Bc2 {[%emt 0:00:02]} O-O {[%emt 0:12:32]} 18. Bf5 {[%emt 0:06:43]} Re8 {[%emt 0:01:48]} 19. O-O {[%emt 0:09:02]} Nf8 {[%emt 0:02:24]} 20. Rb2 {[%emt 0:01:18]} Bxf5 {[%emt 0:02:21]} 21. gxf5 {[%emt 0:03:15]} Nd7 {[%emt 0:02:11][%cal Bf8d7,Bd7c5,Bc5a4,Ba4c3][%mdl 32]} 22. Rd1 {[%emt 0:09:16]} a6 {[%emt 0:07:39]} 23. Ne1 {[%emt 0:00:49][%cal Bf3e1,Be1d3,Bd3b4,Bb4d5][%mdl 32]} Bf8 {[%emt 0:07:01]} 24. Nd3 {[%emt 0:03:08]} c5 {[%emt 0:03:45]} 25. dxc5 {[%emt 0:01:22]} Rac8 {[%emt 0:01:06]} 26. Nb4 {[%emt 0:00:53][%csl LRa6,LRd5]} Nxc5 {[%emt 0:00:05] aiming for ...Na4.} 27. Nxd5 {[%emt 0:00:31]} Kf7 {[%emt 0:01:18]} 28. f3 {[%emt 0:01:28]} Na4 {[%emt 0:00:54][%csl LRb2,LRc3]} 29. Rc2 {[%emt 0:00:11]} Red8 {[%emt 0:00:07][%cal Oa4c3] next ...Nxc3! is good for Black.} 30. e4 $2 {[%emt 0:06:01] [#]} (30. c4 $11 {and White is okay.}) 30... Nxc3 $1 $19 {[%emt 0:00:38][%mdl 512]} 31. Rxc3 {[%emt 0:01:09]} Rxd5 $1 {[%emt 0:00:09][%mdl 64] Remove Defender} 32. Rxd5 {[%emt 0:05:39]} (32. Rxc8 $17 Rxd1+ 33. Kg2) 32... Rxc3 {[%emt 0:00:07][%mdl 4096] Endgame KRB-KRB} 33. Rd7+ {[%emt 0:00:01]} Ke8 {[%emt 0:00:46]} 34. Rb7 {[%emt 0:01:09]} Ra3 {[%emt 0:01:17]} ({Worse is} 34... Rxf3 35. Rb8+ Kf7 36. Rb7+ Kg8 37. Rb8 $17) (34... Bc5+ $142 35. Kh1 Rc1+ 36. Kg2 Rc2+ 37. Kh3 Rxa2 38. Rb8+ Kd7) 35. Bg3 {[%emt 0:01:01]} Bc5+ $2 {[%emt 0:03:15]} ({Weaker is} 35... Rxf3 36. Bf2 $11) ({And not} 35... Rxa5 36. Rb8+ Kf7 37. Rb7+ Kg8 38. Bf2 $15) (35... Rxa2 $19 36. Rb8+ Kf7 37. Rb7+ Kg8) 36. Kg2 $2 {[%emt 0:00:18][%mdl 8192]} (36. Bf2 $11 Bd4 37. Bxd4 exd4 38. Rb6) 36... Rxa2+ {[%emt 0:00:05]} 37. Kh3 {[%emt 0:00:01]} Rxa5 {[%emt 0:00:21]} 38. Be1 {[%emt 0:01:25] Prevents b4.} Ra4 {[%emt 0:01:35]} 39. Rb8+ {[%emt 0:00:24]} Kf7 {[%emt 0:00:20]} 40. Rb7+ {[%emt 0:00:02]} Be7 {[%emt 0:01:07]} 41. Bf2 {[%emt 0:00:07]} Rc4 {[%emt 0:00:09] Inhibits Bc5.} 42. Ra7 {[%emt 0:00:01]} Rc6 {[%emt 0:00:13] Inhibits Bb6.} (42... b4 $19 {and Black stays clearly on top. Hoping for ...b3.} 43. Be1 a5 44. Rxa5 Rc1) 43. Be1 $17 {[%emt 0:00:03] Bb4 is the strong threat.} Ke8 {[%emt 0:01:58]} 44. Ba5 {[%emt 0:00:01] Black continues to play with concentration.} (44. Ra8+ $142 Kd7 45. Ba5) 44... Rc8 {[%emt 0:01:19]} 45. Rxa6 $2 {[%emt 0:00:18] [#]} (45. Kg3 $17) 45... Rb8 $1 $19 {[%emt 0:00:03] Threatens to win with ...b4.} 46. Re6 $2 {[%emt 0:02:21]} (46. Bd2) 46... Kf7 {[%emt 0:00:11]} 47. Bc3 {[%emt 0:01:25]} b4 {[%emt 0:00:05]} 48. Bb2 {[%emt 0:00:02]} Rc8 {[%emt 0:00:15] Prevents Rc6. And now ...Rc2 would win.} 49. Rb6 {[%emt 0:00:04]} (49. Kg4 $142) 49... Rc2 {[%emt 0:00:21]} 50. Ba1 {[%emt 0:00:02]} Ra2 {[%emt 0:00:12]} 51. Bxe5 {[%emt 0:00:08]} fxe5 {[%emt 0:00:01]} 52. Rxh6 {[%emt 0:00:05] KRB-KR} g4+ {[%emt 0:05:51]} (52... b3 $142 {White must now prevent ...Ra4.} 53. Rh7+ Kf6 54. Rh6+ Kg7 55. Rg6+ Kh7) 53. Kxg4 $2 {[%emt 0:04:46]} (53. fxg4 Ra3+ 54. Kg2) 53... Bf6 {[%emt 0:00:54]} 54. Rh7+ {[%emt 0:00:15] [#]} Bg7 $1 {[%emt 0:00:30] Black mates.} 55. h6 {[%emt 0:00:38]} Rg2+ {[%emt 0:00:02]} 56. Kh3 {[%emt 0:00:08]} Kg8 {[%emt 0:00:02]} 57. Rh8+ {[%emt 0:04:11]} Kxh8 {[%emt 0:00:10]} 58. Kxg2 {[%emt 0:00:02]} Bxh6 {[%emt 0:00:01]} 59. Kf1 {[%emt 0:00:05]} b3 {[%emt 0:00:05][%mdl 32768] Weighted Error Value: White=0.68/Black=0.26 (precise) . Loss on time!?} 1-0